[Event "FIDE WYCC 2016 U14 boys"]
[Site "Khanty Mansiysk"]
[Date "2016.09.22"]
[Round "1.1"]
[White "Esipenko, Andrey"]
[Black "Ganerdene, Sugar"]
[Result "1-0"]
[ECO "E90"]
[WhiteElo "2490"]
[BlackElo "2056"]
[Annotator "Reinhold Goldau"]
[PlyCount "113"]
[EventDate "2016.09.??"]
[EventType "swiss"]
[EventRounds "11"]
[EventCountry "RUS"]
[SourceTitle "Youth Database"]
[Source "CBase R.Goldau"]
[SourceDate "2000.03.01"]
[TimeControl "40/5400+30:1800+30"]

1. d4 {[%emt 0:00:08]} Nf6 {[%emt 0:00:00]} 2. c4 {[%emt 0:00:38]} g6 {[%emt 0:
00:00]} 3. Nc3 {[%emt 0:00:15]} Bg7 {[%emt 0:00:00]} 4. e4 {[%emt 0:00:15]} d6
{[%emt 0:00:06]} 5. Nf3 {[%emt 0:00:06]} O-O {[%emt 0:00:12]} 6. h3 {[%emt 0:
00:03]} e5 {[%emt 0:00:53]} 7. d5 {[%emt 0:00:05]} Na6 {[%emt 0:00:55]} 8. Be3
{[%emt 0:00:21]} Nh5 {[%emt 0:00:36]} 9. g3 {[%emt 0:04:12]} Nf6 {[%emt 0:07:
17]} 10. g4 {[%emt 0:01:01]} c6 {[%emt 0:01:11]} 11. Be2 {[%emt 0:03:46]} Qe7 {
[%emt 0:01:18]} 12. Nd2 {[%emt 0:01:48]} Nc7 {[%emt 0:01:39]} 13. g5 {[%emt 0:
15:25]} Nd7 {[%emt 0:01:52]} 14. h4 {[%emt 0:03:25]} cxd5 {[%emt 0:01:29]} 15.
cxd5 {[%emt 0:00:38]} b5 {[%emt 0:03:59]} 16. a3 {[%emt 0:04:25]} a5 {[%emt 0:
05:26]} 17. Nxb5 {[%emt 0:05:34]} Nxb5 {[%emt 0:03:37]} 18. Bxb5 {[%emt 0:00:
06]} f5 {[%emt 0:04:35]} 19. f3 {[%emt 0:04:40]} Rb8 {[%emt 0:12:48]} 20. Qe2 {
[%emt 0:08:29]} Nb6 {[%emt 0:04:37]} 21. Nb3 {[%emt 0:08:15]} Qa7 {[%emt 0:12:
13]} 22. h5 {[%emt 0:02:10]} Bd7 {[%emt 0:15:34]} 23. Bd3 {[%emt 0:06:34]} f4 {
[%emt 0:01:59]} 24. Bf2 {[%emt 0:01:12]} Rfc8 {[%emt 0:03:58]} 25. Nd2 {
[%emt 0:03:08]} Qc7 {[%emt 0:00:28]} 26. b3 {[%emt 0:05:35]} a4 {[%emt 0:01:33]
} 27. b4 {[%emt 0:03:55]} Qc3 {[%emt 0:06:52]} 28. O-O {[%emt 0:00:50]} Qc7 {
[%emt 0:00:59]} 29. Bh4 {[%emt 0:01:56]} Kf7 {[%emt 0:00:39]} 30. h6 {[%emt 0:
01:37]} Bf8 {[%emt 0:00:06]} 31. Ba6 {[%emt 0:00:04]} Re8 {[%emt 0:01:24]} 32.
Rfc1 {[%emt 0:00:41]} Qd8 {[%emt 0:00:21]} 33. Qh2 {[%emt 0:02:21]} Be7 {
[%emt 0:00:35]} 34. Qg2 {[%emt 0:00:13]} Na8 {[%emt 0:01:17]} 35. Be2 {[%emt 0:
02:58]} Nb6 {[%emt 0:01:55]} 36. Rc3 {[%emt 0:00:46]} Rc8 {[%emt 0:00:52]} 37.
Rac1 {[%emt 0:00:46]} Rxc3 {[%emt 0:01:17]} 38. Rxc3 {[%emt 0:00:01]} Qb8 {
[%emt 0:00:35]} 39. Qf2 {[%emt 0:03:37]} Qd8 {[%emt 0:00:56]} 40. Kf1 {[%emt 0:
00:00]} Qb8 {[%emt 0:00:00]} 41. Ke1 {[%emt 0:04:33]} Rc8 {[%emt 0:08:24]} 42.
Rxc8 {[%emt 0:00:49]} Nxc8 {[%emt 0:04:02]} 43. Nc4 {[%emt 0:02:27]} Bd8 {
[%emt 0:01:16]} 44. Kd2 {[%emt 0:04:36]} Bb5 {[%emt 0:05:01]} 45. Qg1 {[%emt 0:
01:48]} Bd7 {[%emt 0:00:32]} 46. Bf2 {[%emt 0:02:07]} Kf8 {[%emt 0:05:43]} 47.
Bd3 {[%emt 0:01:16]} Ke8 {[%emt 0:01:39]} 48. b5 {[%emt 0:05:58]} Qa8 {[%emt 0:
09:06]} 49. Qb1 {[%emt 0:01:28]} Qb7 {[%emt 0:02:00]} 50. b6 {[%emt 0:00:27]}
Bxg5 {[%emt 0:00:40]} 51. Na5 {[%emt 0:00:18]} Qa8 {[%emt 0:00:18]} 52. b7 {
[%emt 0:00:14]} Qb8 {[%emt 0:00:41]} 53. Nc6 {[%emt 0:00:29]} Bxc6 {[%emt 0:00:
17]} 54. dxc6 {[%emt 0:00:07]} Bd8 {[%emt 0:00:05]} 55. bxc8=Q {[%emt 0:00:23]}
Qxc8 {[%emt 0:00:02]} 56. Qb5 {[%emt 0:00:41]} Bc7 {[%emt 0:00:23]} 57. Qd5 {
[%emt 0:00:20]} 1-0

[Event "FIDE WYCC 2016 U14 boys"]
[Site "Khanty Mansiysk"]
[Date "2016.09.22"]
[Round "1.2"]
[White "Marchuk, Rostislav"]
[Black "Sargsyan, Shant"]
[Result "1-0"]
[ECO "E14"]
[WhiteElo "2054"]
[BlackElo "2440"]
[Annotator "Reinhold Goldau"]
[PlyCount "57"]
[EventDate "2016.09.??"]
[EventType "swiss"]
[EventRounds "11"]
[EventCountry "RUS"]
[SourceTitle "Youth Database"]
[Source "CBase R.Goldau"]
[SourceDate "2000.03.01"]
[TimeControl "40/5400+30:1800+30"]

1. d4 {[%emt 0:00:00]} Nf6 {[%emt 0:00:00]} 2. Nf3 {[%emt 0:00:00]} e6 {
[%emt 0:00:21]} 3. e3 {[%emt 0:00:00]} b6 {[%emt 0:01:39]} 4. Bd3 {[%emt 0:00:
18]} Bb7 {[%emt 0:00:43]} 5. O-O {[%emt 0:00:17]} c5 {[%emt 0:00:43]} 6. c4 {
[%emt 0:00:31]} Be7 {[%emt 0:03:28]} 7. Nc3 {[%emt 0:00:24]} cxd4 {[%emt 0:01:
38]} 8. exd4 {[%emt 0:00:15]} d5 {[%emt 0:00:50]} 9. cxd5 {[%emt 0:00:38]} Nxd5
{[%emt 0:01:54]} 10. Ne5 {[%emt 0:00:27]} O-O {[%emt 0:04:00]} 11. Qh5 {
[%emt 0:02:04]} Nf6 {[%emt 0:05:48]} 12. Qh4 {[%emt 0:01:09]} Ne4 {[%emt 0:18:
19]} 13. Qg4 {[%emt 0:02:20]} Nxc3 {[%emt 0:06:13]} 14. bxc3 {[%emt 0:00:16]}
Bf6 {[%emt 0:03:53]} 15. Qh3 {[%emt 0:05:59]} g6 {[%emt 0:03:27]} 16. Ng4 {
[%emt 0:26:55]} Bg7 {[%emt 0:01:52]} 17. Nh6+ {[%emt 0:08:23]} Kh8 {[%emt 0:00:
20]} 18. Ba3 {[%emt 0:18:19]} f5 {[%emt 0:06:21]} 19. Rfe1 {[%emt 0:08:54]} Qf6
{[%emt 0:29:01]} 20. Bxf8 {[%emt 0:10:30]} Qxf8 {[%emt 0:00:50]} 21. Rxe6 {
[%emt 0:00:17]} Bxh6 {[%emt 0:01:16]} 22. Rae1 {[%emt 0:01:05]} Nd7 {[%emt 0:
06:14]} 23. Re7 {[%emt 0:10:12]} Rd8 {[%emt 0:00:33]} 24. Bc4 {[%emt 0:01:14]}
Bg7 {[%emt 0:01:54]} 25. Rf7 {[%emt 0:01:03]} Qa3 {[%emt 0:00:37]} 26. Qh4 {
[%emt 0:00:44]} Rg8 {[%emt 0:00:34]} 27. Rxd7 {[%emt 0:00:45]} Qxc3 {[%emt 0:
00:14]} 28. Qe7 {[%emt 0:00:29]} Be4 {[%emt 0:00:45]} 29. Qxg7+ {[%emt 0:00:16]
} 1-0

[Event "FIDE WYCC 2016 U14 boys"]
[Site "Khanty Mansiysk"]
[Date "2016.09.22"]
[Round "1.3"]
[White "Shevchenko, Kirill"]
[Black "Juksta, Karolis"]
[Result "1-0"]
[ECO "C07"]
[WhiteElo "2438"]
[BlackElo "2046"]
[Annotator "Reinhold Goldau"]
[PlyCount "113"]
[EventDate "2016.09.??"]
[EventType "swiss"]
[EventRounds "11"]
[EventCountry "RUS"]
[SourceTitle "Youth Database"]
[Source "CBase R.Goldau"]
[SourceDate "2000.03.01"]
[TimeControl "40/5400+30:1800+30"]

1. e4 {[%emt 0:00:00]} e6 {[%emt 0:00:00]} 2. d4 {[%emt 0:00:00]} d5 {[%emt 0:
00:00]} 3. Nd2 {[%emt 0:00:00]} c5 {[%emt 0:00:28]} 4. Ngf3 {[%emt 0:00:09]}
cxd4 {[%emt 0:02:13]} 5. Nxd4 {[%emt 0:00:22]} Nf6 {[%emt 0:00:16]} 6. exd5 {
[%emt 0:01:06]} Nxd5 {[%emt 0:02:10]} 7. N2f3 {[%emt 0:00:17]} Bb4+ {[%emt 0:
13:29]} 8. Bd2 {[%emt 0:00:39]} Bxd2+ 9. Qxd2 {[%emt 0:00:16]} O-O {[%emt 0:07:
15]} 10. O-O-O {[%emt 0:03:18]} Nd7 {[%emt 0:02:39]} 11. Bc4 {[%emt 0:11:13]}
N7b6 {[%emt 0:07:51]} 12. Bd3 {[%emt 0:04:11]} f6 {[%emt 0:11:27]} 13. c4 {
[%emt 0:13:58]} Qc7 {[%emt 0:09:18]} 14. b3 {[%emt 0:22:42]} e5 {[%emt 0:02:01]
} 15. Nb5 {[%emt 0:05:09]} Qc5 {[%emt 0:00:17]} 16. Qc2 {[%emt 0:09:12]} Nb4 {
[%emt 0:12:20]} 17. Bxh7+ {[%emt 0:00:35]} Kh8 {[%emt 0:00:22]} 18. Qe4 {
[%emt 0:01:36]} Bg4 {[%emt 0:09:45]} 19. Qxg4 {[%emt 0:09:39]} Kxh7 {[%emt 0:
00:08]} 20. Qh3+ {[%emt 0:03:53]} Kg8 {[%emt 0:00:49]} 21. Qe6+ {[%emt 0:00:47]
} Kh7 {[%emt 0:01:21]} 22. Qh3+ {[%emt 0:04:03]} Kg8 {[%emt 0:00:06]} 23. Qe6+
{[%emt 0:00:06]} Kh7 {[%emt 0:00:12]} 24. a3 {[%emt 0:01:10]} Nc6 {[%emt 0:04:
02]} 25. Rd3 {[%emt 0:06:11]} Rae8 {[%emt 0:03:17]} 26. Ng5+ {[%emt 0:00:50]}
Kg6 {[%emt 0:02:11]} 27. Ne4 {[%emt 0:01:23]} Qxa3+ {[%emt 0:01:35]} 28. Nxa3 {
[%emt 0:00:01]} Rxe6 {[%emt 0:00:09]} 29. Nc2 {[%emt 0:01:10]} Rd8 {[%emt 0:02:
27]} 30. Rxd8 {[%emt 0:00:21]} Nxd8 {[%emt 0:00:04]} 31. Rd1 {[%emt 0:00:29]}
Nf7 {[%emt 0:00:14]} 32. c5 {[%emt 0:00:37]} Nc8 {[%emt 0:00:12]} 33. b4 {
[%emt 0:00:32]} b6 {[%emt 0:03:12]} 34. Rd7 {[%emt 0:00:34]} bxc5 {[%emt 0:02:
51]} 35. Rc7 {[%emt 0:00:24]} Nfd6 {[%emt 0:00:06]} 36. Nxd6 {[%emt 0:00:35]}
Nxd6 {[%emt 0:00:07]} 37. bxc5 {[%emt 0:00:08]} Nb5 {[%emt 0:00:05]} 38. Rb7 {
[%emt 0:00:37]} a6 {[%emt 0:01:23]} 39. Nb4 {[%emt 0:00:31]} Nd4 {[%emt 0:00:
07]} 40. Nd5 {[%emt 0:00:00]} Kh6 {[%emt 0:00:00]} 41. Kb2 {[%emt 0:05:33]} a5
{[%emt 0:12:01]} 42. Rb6 {[%emt 0:01:36]} Rxb6+ {[%emt 0:17:51]} 43. cxb6 {
[%emt 0:00:38]} Nc6 {[%emt 0:00:13]} 44. b7 {[%emt 0:00:35]} Nb8 {[%emt 0:00:
32]} 45. Kb3 {[%emt 0:01:05]} Kg6 {[%emt 0:00:05]} 46. Ka4 {[%emt 0:00:21]} Kf7
{[%emt 0:00:30]} 47. Kxa5 {[%emt 0:00:10]} Ke6 {[%emt 0:00:09]} 48. Nc7+ {
[%emt 0:00:53]} Kd6 {[%emt 0:01:12]} 49. Na6 {[%emt 0:00:12]} Nc6+ {[%emt 0:01:
48]} 50. Ka4 {[%emt 0:01:50]} f5 {[%emt 0:00:21]} 51. b8=Q+ {[%emt 0:00:25]}
Nxb8 {[%emt 0:00:08]} 52. Nxb8 {[%emt 0:00:04]} e4 {[%emt 0:00:08]} 53. Kb3 {
[%emt 0:00:22]} g5 {[%emt 0:00:32]} 54. Kc4 {[%emt 0:00:24]} Ke5 {[%emt 0:00:
36]} 55. Nc6+ {[%emt 0:00:19]} Kf4 {[%emt 0:00:06]} 56. Kd4 {[%emt 0:00:15]} g4
{[%emt 0:00:53]} 57. Ne7 {[%emt 0:00:17]} 1-0

[Event "FIDE WYCC 2016 U14 boys"]
[Site "Khanty Mansiysk"]
[Date "2016.09.22"]
[Round "1.4"]
[White "Thilakarathne, G M H."]
[Black "Yakubboev, Nodirbek"]
[Result "0-1"]
[ECO "B12"]
[WhiteElo "2028"]
[BlackElo "2431"]
[Annotator "Reinhold Goldau"]
[PlyCount "76"]
[EventDate "2016.09.??"]
[EventType "swiss"]
[EventRounds "11"]
[EventCountry "RUS"]
[SourceTitle "Youth Database"]
[Source "CBase R.Goldau"]
[SourceDate "2000.03.01"]
[TimeControl "40/5400+30:1800+30"]

1. e4 {[%emt 0:00:00]} c6 {[%emt 0:00:16]} 2. d4 {[%emt 0:00:00]} d5 {[%emt 0:
00:21]} 3. e5 {[%emt 0:00:00]} Bf5 {[%emt 0:00:34]} 4. Nf3 {[%emt 0:00:13]} e6
{[%emt 0:00:31]} 5. Be2 {[%emt 0:00:58]} Nd7 {[%emt 0:01:41]} 6. O-O {[%emt 0:
00:47]} h6 {[%emt 0:01:09]} 7. Nbd2 {[%emt 0:00:26]} Ne7 {[%emt 0:01:19]} 8.
Nb3 {[%emt 0:00:42]} Qc7 {[%emt 0:03:15]} 9. Bd2 {[%emt 0:11:18]} a5 {[%emt 0:
14:01]} 10. a4 {[%emt 0:03:28]} g5 {[%emt 0:03:14]} 11. Ne1 c5 {[%emt 0:03:32]}
12. Nxc5 {[%emt 0:24:21]} Nxc5 {[%emt 0:00:34]} 13. dxc5 {[%emt 0:00:11]} Nc6 {
[%emt 0:04:41]} 14. Bd3 {[%emt 0:08:16]} Bxc5 {[%emt 0:19:33]} 15. Bxf5 {
[%emt 0:01:40]} exf5 {[%emt 0:00:06]} 16. Nd3 {[%emt 0:02:40]} Bb6 {[%emt 0:01:
44]} 17. Re1 {[%emt 0:19:11]} O-O-O {[%emt 0:06:56]} 18. c3 {[%emt 0:10:24]}
Qd7 {[%emt 0:19:06]} 19. Qb3 {[%emt 0:01:52]} Ba7 {[%emt 0:00:48]} 20. Qb5 {
[%emt 0:00:34]} f4 {[%emt 0:01:01]} 21. b4 {[%emt 0:08:22]} axb4 {[%emt 0:01:
29]} 22. Nxb4 {[%emt 0:02:59]} Nxb4 {[%emt 0:02:07]} 23. Qxb4 {[%emt 0:01:34]}
Qc6 {[%emt 0:03:08]} 24. a5 {[%emt 0:01:13]} Rhe8 {[%emt 0:02:13]} 25. h4 {
[%emt 0:00:37]} Re6 {[%emt 0:01:22]} 26. a6 {[%emt 0:00:26]} bxa6 {[%emt 0:01:
06]} 27. Rab1 {[%emt 0:00:39]} Qb6 {[%emt 0:02:00]} 28. Qxb6 {[%emt 0:00:16]}
Bxb6 {[%emt 0:00:09]} 29. Bc1 {[%emt 0:00:33]} Bc7 {[%emt 0:01:02]} 30. hxg5 {
[%emt 0:00:19]} hxg5 {[%emt 0:00:14]} 31. Ba3 {[%emt 0:00:48]} Bxe5 {[%emt 0:
00:27]} 32. Rbc1 {[%emt 0:00:24]} Kd7 {[%emt 0:03:03]} 33. Bb4 {[%emt 0:00:17]}
g4 {[%emt 0:00:54]} 34. Red1 {[%emt 0:00:18]} Kc8 {[%emt 0:00:54]} 35. Rd3 {
[%emt 0:00:16]} Bc7 {[%emt 0:00:52]} 36. Rcd1 {[%emt 0:00:47]} Bb6 {[%emt 0:00:
14]} 37. Kf1 {[%emt 0:01:00]} Rh8 {[%emt 0:00:11]} 38. Kg1 {[%emt 0:00:38]} g3
{[%emt 0:00:13]} 0-1

[Event "FIDE WYCC 2016 U14 boys"]
[Site "Khanty Mansiysk"]
[Date "2016.09.24"]
[Round "3.1"]
[White "Esipenko, Andrey"]
[Black "Ibrahimli, Murad"]
[Result "1-0"]
[ECO "B96"]
[WhiteElo "2490"]
[BlackElo "2203"]
[Annotator "Reinhold Goldau"]
[PlyCount "63"]
[EventDate "2016.09.??"]
[EventType "swiss"]
[EventRounds "11"]
[EventCountry "RUS"]
[SourceTitle "Youth Database"]
[Source "CBase R.Goldau"]
[SourceDate "2000.03.01"]
[TimeControl "40/5400+30:1800+30"]

1. e4 {[%emt 0:00:00]} c5 {[%emt 0:00:00]} 2. Nf3 {[%emt 0:00:00]} d6 {[%emt 0:
00:00]} 3. d4 {[%emt 0:00:00]} cxd4 {[%emt 0:00:00]} 4. Nxd4 {[%emt 0:00:00]}
Nf6 {[%emt 0:00:03]} 5. Nc3 {[%emt 0:00:00]} a6 {[%emt 0:00:04]} 6. Bg5 {
[%emt 0:00:02]} e6 {[%emt 0:00:38]} 7. f4 {[%emt 0:00:28]} Qc7 {[%emt 0:00:51]}
8. Qe2 {[%emt 0:04:11]} Nc6 {[%emt 0:01:57]} 9. O-O-O {[%emt 0:07:26]} Be7 {
[%emt 0:03:53]} 10. Nxc6 {[%emt 0:08:56]} bxc6 {[%emt 0:01:36]} 11. e5 {
[%emt 0:05:42]} dxe5 {[%emt 0:07:29]} 12. fxe5 {[%emt 0:00:35]} Nd5 {[%emt 0:
03:59]} 13. Bxe7 {[%emt 0:14:24]} Nxc3 {[%emt 0:02:22]} 14. Qf3 {[%emt 0:03:23]
} Nxd1 {[%emt 0:11:16]} 15. Bd6 {[%emt 0:00:57]} Qb6 {[%emt 0:08:51]} 16. Qxd1
{[%emt 0:00:45]} a5 {[%emt 0:25:37]} 17. Qd2 {[%emt 0:03:04]} h6 {[%emt 0:08:
23]} 18. Be2 {[%emt 0:02:12]} Ba6 {[%emt 0:10:28]} 19. Bh5 {[%emt 0:00:39]} Ra7
{[%emt 0:07:45]} 20. Qf4 {[%emt 0:03:15]} Rg8 {[%emt 0:01:38]} 21. Qe4 {
[%emt 0:02:06]} g6 {[%emt 0:01:41]} 22. Bf3 {[%emt 0:00:07]} Bb7 {[%emt 0:00:
25]} 23. Qh4 {[%emt 0:01:31]} Qe3+ {[%emt 0:01:10]} 24. Kb1 {[%emt 0:00:05]}
Qg5 {[%emt 0:00:57]} 25. Qd4 {[%emt 0:00:31]} Ra6 {[%emt 0:00:31]} 26. Rd1 {
[%emt 0:13:20]} Qd8 {[%emt 0:00:51]} 27. Qe3 {[%emt 0:00:08]} Rh8 {[%emt 0:00:
31]} 28. h4 {[%emt 0:00:59]} a4 {[%emt 0:00:30]} 29. h5 {[%emt 0:00:25]} g5 {
[%emt 0:00:20]} 30. Be4 {[%emt 0:00:20]} Ra8 {[%emt 0:00:38]} 31. Qf3 {[%emt 0:
00:33]} Ra5 {[%emt 0:00:34]} 32. c4 {[%emt 0:00:30]} 1-0

[Event "FIDE WYCC 2016 U14 boys"]
[Site "Khanty Mansiysk"]
[Date "2016.09.24"]
[Round "3.2"]
[White "Shevchenko, Kirill"]
[Black "Pitzanti, Matteo"]
[Result "1/2-1/2"]
[ECO "C90"]
[WhiteElo "2438"]
[BlackElo "2175"]
[Annotator "Reinhold Goldau"]
[PlyCount "86"]
[EventDate "2016.09.??"]
[EventType "swiss"]
[EventRounds "11"]
[EventCountry "RUS"]
[SourceTitle "Youth Database"]
[Source "CBase R.Goldau"]
[SourceDate "2000.03.01"]
[TimeControl "40/5400+30:1800+30"]

1. e4 {[%emt 0:00:00]} e5 {[%emt 0:00:00]} 2. Nf3 {[%emt 0:00:00]} Nc6 {
[%emt 0:00:00]} 3. Bb5 {[%emt 0:00:00]} a6 {[%emt 0:00:00]} 4. Ba4 {[%emt 0:00:
00]} Nf6 {[%emt 0:00:04]} 5. O-O {[%emt 0:00:00]} Be7 {[%emt 0:00:06]} 6. Re1 {
[%emt 0:00:04]} b5 {[%emt 0:00:06]} 7. Bb3 {[%emt 0:00:01]} d6 {[%emt 0:00:14]}
8. a4 {[%emt 0:00:13]} Bg4 {[%emt 0:00:36]} 9. c3 {[%emt 0:01:25]} O-O {
[%emt 0:00:25]} 10. h3 {[%emt 0:00:04]} Bxf3 {[%emt 0:00:17]} 11. Qxf3 {
[%emt 0:00:03]} Na5 {[%emt 0:01:00]} 12. Bc2 {[%emt 0:00:19]} b4 {[%emt 0:00:
15]} 13. d4 {[%emt 0:02:50]} c5 {[%emt 0:02:11]} 14. d5 {[%emt 0:01:11]} Nd7 {
[%emt 0:00:47]} 15. Qg4 {[%emt 0:02:23]} Kh8 {[%emt 0:04:23]} 16. Qe2 {[%emt 0:
27:21]} Bg5 {[%emt 0:07:01]} 17. Bd2 {[%emt 0:09:21]} Bxd2 {[%emt 0:17:00]} 18.
Nxd2 {[%emt 0:01:05]} Qb6 {[%emt 0:07:10]} 19. Bd3 {[%emt 0:11:00]} Rfb8 {
[%emt 0:06:01]} 20. Bc4 {[%emt 0:07:37]} Qa7 {[%emt 0:03:56]} 21. Ra2 {[%emt 0:
07:01]} Rb6 {[%emt 0:15:23]} 22. Bd3 {[%emt 0:03:43]} Rbb8 {[%emt 0:04:34]} 23.
h4 {[%emt 0:11:04]} Rc8 {[%emt 0:04:11]} 24. Rc1 {[%emt 0:09:31]} bxc3 {
[%emt 0:13:03]} 25. bxc3 {[%emt 0:00:11]} Rcb8 {[%emt 0:00:08]} 26. Nc4 {
[%emt 0:02:14]} Qc7 {[%emt 0:02:41]} 27. h5 {[%emt 0:02:41]} h6 {[%emt 0:05:29]
} 28. Ne3 {[%emt 0:01:24]} c4 {[%emt 0:01:53]} 29. Bxc4 {[%emt 0:01:01]} Nxc4 {
[%emt 0:01:33]} 30. Qxc4 {[%emt 0:00:16]} Nc5 {[%emt 0:00:13]} 31. Nf5 {
[%emt 0:00:44]} Qd8 {[%emt 0:01:23]} 32. Re1 {[%emt 0:00:33]} Kh7 {[%emt 0:00:
56]} 33. g3 {[%emt 0:00:29]} g6 {[%emt 0:00:49]} 34. Nh4 {[%emt 0:00:11]} Qg5 {
[%emt 0:00:21]} 35. hxg6+ {[%emt 0:00:04]} fxg6 {[%emt 0:00:04]} 36. Rae2 {
[%emt 0:01:18]} Ra7 {[%emt 0:01:06]} 37. Nf3 {[%emt 0:00:33]} Qh5 {[%emt 0:01:
24]} 38. Kg2 {[%emt 0:00:13]} Rf7 {[%emt 0:00:49]} 39. Nh2 {[%emt 0:00:48]} Qg5
{[%emt 0:00:49]} 40. Nf3 {[%emt 0:00:00]} Qe7 {[%emt 0:00:00]} 41. Rh1 {
[%emt 0:16:03]} Rbf8 {[%emt 0:04:51]} 42. Ne1 {[%emt 0:03:23]} Qa7 {[%emt 0:02:
42]} 43. Rf1 {[%emt 0:01:49]} Qd7 {[%emt 0:03:07]} 1/2-1/2

[Event "FIDE WYCC 2016 U14 boys"]
[Site "Khanty Mansiysk"]
[Date "2016.09.24"]
[Round "3.3"]
[White "Lomasov, Semen"]
[Black "Zhao, Chenxi"]
[Result "1-0"]
[ECO "B48"]
[WhiteElo "2393"]
[BlackElo "2124"]
[Annotator "Reinhold Goldau"]
[PlyCount "55"]
[EventDate "2016.09.??"]
[EventType "swiss"]
[EventRounds "11"]
[EventCountry "RUS"]
[SourceTitle "Youth Database"]
[Source "CBase R.Goldau"]
[SourceDate "2000.03.01"]
[TimeControl "40/5400+30:1800+30"]

1. e4 {[%emt 0:00:00]} c5 {[%emt 0:00:00]} 2. Nf3 {[%emt 0:00:00]} e6 {[%emt 0:
00:00]} 3. d4 {[%emt 0:00:00]} cxd4 {[%emt 0:00:01]} 4. Nxd4 {[%emt 0:00:00]}
Nc6 {[%emt 0:00:06]} 5. Nc3 {[%emt 0:00:01]} Qc7 {[%emt 0:00:07]} 6. Be3 {
[%emt 0:00:09]} a6 {[%emt 0:00:13]} 7. Qf3 {[%emt 0:00:07]} Nf6 {[%emt 0:02:19]
} 8. O-O-O {[%emt 0:00:29]} Be7 {[%emt 0:01:19]} 9. Be2 {[%emt 0:00:23]} h5 {
[%emt 0:01:27]} 10. Qg3 {[%emt 0:00:21]} Qxg3 {[%emt 0:00:16]} 11. hxg3 {
[%emt 0:00:07]} Ne5 {[%emt 0:04:30]} 12. f3 {[%emt 0:00:09]} b5 {[%emt 0:01:33]
} 13. g4 {[%emt 0:01:02]} Ng6 {[%emt 0:07:13]} 14. g5 {[%emt 0:03:18]} Ng8 {
[%emt 0:03:04]} 15. f4 {[%emt 0:04:18]} Bb7 {[%emt 0:03:35]} 16. Bxh5 {[%emt 0:
02:15]} b4 {[%emt 0:02:34]} 17. Nce2 {[%emt 0:00:59]} Bc5 {[%emt 0:12:30]} 18.
f5 {[%emt 0:06:20]} Ne5 {[%emt 0:03:22]} 19. Bf4 {[%emt 0:02:22]} g6 {[%emt 0:
00:51]} 20. g4 {[%emt 0:26:11]} Bd6 {[%emt 0:07:42]} 21. fxg6 {[%emt 0:11:01]}
fxg6 {[%emt 0:01:01]} 22. Nf5 {[%emt 0:10:14]} exf5 {[%emt 0:06:57]} 23. Rxd6 {
[%emt 0:00:06]} Nf7 {[%emt 0:02:23]} 24. Rxg6 {[%emt 0:00:19]} Kf8 {[%emt 0:06:
23]} 25. Ng3 {[%emt 0:01:21]} fxe4 {[%emt 0:07:09]} 26. Rf1 {[%emt 0:01:50]}
Bd5 {[%emt 0:03:47]} 27. Bd6+ {[%emt 0:00:36]} Ke8 {[%emt 0:00:08]} 28. Rg7 {
[%emt 0:00:18]} 1-0

[Event "FIDE WYCC 2016 U14 boys"]
[Site "Khanty Mansiysk"]
[Date "2016.09.24"]
[Round "3.4"]
[White "Bharambe, Bhavik C"]
[Black "Stoleriu, George"]
[Result "1-0"]
[ECO "A85"]
[WhiteElo "2104"]
[BlackElo "2247"]
[Annotator "Reinhold Goldau"]
[PlyCount "107"]
[EventDate "2016.09.??"]
[EventType "swiss"]
[EventRounds "11"]
[EventCountry "RUS"]
[SourceTitle "Youth Database"]
[Source "CBase R.Goldau"]
[SourceDate "2000.03.01"]
[TimeControl "40/5400+30:1800+30"]

1. d4 {[%emt 0:00:00]} e6 {[%emt 0:00:00]} 2. c4 {[%emt 0:00:00]} f5 {[%emt 0:
00:00]} 3. g3 {[%emt 0:00:49]} Nf6 {[%emt 0:00:00]} 4. Bg2 {[%emt 0:01:36]}
Bb4+ {[%emt 0:00:31]} 5. Nc3 {[%emt 0:03:12]} O-O {[%emt 0:00:55]} 6. Nh3 {
[%emt 0:06:47]} Qe7 {[%emt 0:14:01]} 7. Nf4 {[%emt 0:02:23]} d6 {[%emt 0:01:55]
} 8. O-O {[%emt 0:00:21]} c6 {[%emt 0:02:25]} 9. Qb3 {[%emt 0:10:36]} Bxc3 {
[%emt 0:02:03]} 10. bxc3 {[%emt 0:00:11]} Kh8 {[%emt 0:07:43]} 11. Ba3 {
[%emt 0:02:10]} Na6 {[%emt 0:03:06]} 12. Rfd1 {[%emt 0:05:50]} Rb8 {[%emt 0:05:
23]} 13. Rab1 {[%emt 0:04:27]} Bd7 {[%emt 0:04:12]} 14. Nd3 {[%emt 0:05:56]}
Be8 {[%emt 0:06:47]} 15. c5 {[%emt 0:04:07]} d5 {[%emt 0:02:29]} 16. Bc1 {
[%emt 0:00:18]} Nh5 {[%emt 0:10:45]} 17. Qa3 {[%emt 0:04:05]} Bg6 {[%emt 0:11:
50]} 18. Rb2 {[%emt 0:02:24]} Ra8 {[%emt 0:12:15]} 19. Ne5 {[%emt 0:01:46]}
Rfb8 {[%emt 0:03:57]} 20. h3 {[%emt 0:03:17]} Be8 {[%emt 0:02:14]} 21. g4 {
[%emt 0:01:36]} Nf6 {[%emt 0:01:31]} 22. Bf4 {[%emt 0:00:38]} Nc7 {[%emt 0:00:
20]} 23. Qa4 {[%emt 0:01:23]} Nb5 {[%emt 0:02:03]} 24. Qc2 {[%emt 0:00:16]}
fxg4 {[%emt 0:03:13]} 25. hxg4 {[%emt 0:01:49]} Nc7 {[%emt 0:00:03]} 26. Rdb1 {
[%emt 0:00:50]} Nb5 {[%emt 0:00:54]} 27. Rb3 {[%emt 0:00:28]} a5 {[%emt 0:02:
05]} 28. a4 {[%emt 0:00:33]} Na7 {[%emt 0:00:02]} 29. Qb2 {[%emt 0:01:18]} Qd8
{[%emt 0:01:14]} 30. Rxb7 {[%emt 0:01:24]} Rc8 {[%emt 0:00:02]} 31. Qb6 {
[%emt 0:00:44]} Bg6 {[%emt 0:01:00]} 32. Nxg6+ {[%emt 0:00:39]} hxg6 {[%emt 0:
00:03]} 33. Rxa7 {[%emt 0:00:17]} Rxa7 {[%emt 0:00:24]} 34. Qxa7 {[%emt 0:00:
13]} Nxg4 {[%emt 0:00:03]} 35. Rb8 {[%emt 0:00:40]} Kh7 {[%emt 0:00:47]} 36.
Rxc8 {[%emt 0:00:29]} Qxc8 {[%emt 0:00:20]} 37. Qxa5 {[%emt 0:00:35]} Qf8 {
[%emt 0:01:02]} 38. Bg3 {[%emt 0:00:50]} Qf5 {[%emt 0:00:15]} 39. Bf3 {[%emt 0:
00:21]} Nf6 {[%emt 0:00:27]} 40. Qb4 {[%emt 0:00:00]} g5 {[%emt 0:00:00]} 41.
Qb2 {[%emt 0:01:25]} g4 {[%emt 0:00:22]} 42. Bg2 {[%emt 0:00:08]} Nh5 {[%emt 0:
00:36]} 43. Be5 {[%emt 0:01:50]} g3 {[%emt 0:01:04]} 44. Bxg3 {[%emt 0:00:45]}
Nxg3 {[%emt 0:00:05]} 45. fxg3 {[%emt 0:00:12]} Qg5 {[%emt 0:00:01]} 46. Qb1+ {
[%emt 0:01:08]} g6 {[%emt 0:00:16]} 47. Kf2 {[%emt 0:01:07]} Qd2 {[%emt 0:00:
21]} 48. Qb4 {[%emt 0:01:00]} Qc2 {[%emt 0:00:23]} 49. a5 {[%emt 0:01:44]} Qf5+
{[%emt 0:00:06]} 50. Bf3 {[%emt 0:00:09]} g5 {[%emt 0:00:02]} 51. Qb8 {[%emt 0:
01:44]} g4 {[%emt 0:01:31]} 52. Qf4 {[%emt 0:00:07]} gxf3 {[%emt 0:00:03]} 53.
Qxf5+ {[%emt 0:00:10]} exf5 {[%emt 0:00:04]} 54. Kxf3 {[%emt 0:00:28]} 1-0